Cogmind - Beta 16.1 @@@ ROGUE MODE // 2026.02.28 @ 08:41:16 Player: Fleshy Vegetable Bird Result: Destroyed by Y-64 Sentinel with KE Penetrator Performance ------------- Evolutions (4) 2000 Regions Visited (9) 1800 Robots Destroyed (103) 515 Value Destroyed (3112) 3112 Prototype IDs (34) 680 Alien Tech Used (1) 200 Bonus (3357) 3357 TOTAL SCORE: 11664 Bonus ------- Follower Combat Kills 432 Delivered SUBCON Basin 2000 Registered with UFD 300 Met Optimus in HQ 500 Met Data Miner 300 Friendly Fire -175 Cogmind --------- Core Integrity 0/850 Matter 300/300 Energy 290/290 System Corruption 6% Temperature Cool (9) Movement Walking (190) Ox1 Location -5/Proximity Caves Parts ------- > --- POWER (1) -------- Improved Deuterium Engine > --- PROPULSION (5) --- Carbon-fiber Leg Flexi-carbon Leg Armored Leg > --- UTILITY (8) ------ High-capacity Storage Unit Structural Scanner 0b10 Decoder Chip [Scout] Improved Target Analyzer Makeshift Hacking Suite Makeshift System Shield Tech Extrapolator > --- WEAPON (2) ------- Powered Hammer Ripper > --- INVENTORY (20) --- Makeshift Power Source Light Fission Core Improved Kinecellerator Cloaking Device Beamcaster KE Penetrator Battle Cannon Long-range Missile Launcher Peak State ------------ > --- POWER ------------ Meta Core > --- PROPULSION ------- Improved Medium Treads Improved Medium Treads Wheel Wheel Wheel > --- UTILITY ---------- Huge Storage Unit Enhanced Optical Array Improved Target Analyzer Layered Medium Armor Plating Makeshift Hacking Suite Improved Hacking Suite Tech Extrapolator > --- WEAPON ----------- Gauss Rifle Coil Gun > --- INVENTORY -------- Fission Core High-capacity Storage Unit Medium Battery Medium Matter Pod Structural Scanner Improved Sensor Array Improved Signal Interpreter Advanced Terrain Scanner Recoil Stabilizer Matter Filter Phase Shifter Improved Utility Shielding Improved Light Armor Plating Focal Shield Makeshift System Shield Barrage Gun Rocket Launcher CPS Tube Maul Powered Hammer Vortex Trap Vortex Trap [Rating: 72] Favorites ----------- Power Meta Core Engine Subdweller Power Source Power Core Meta Core Propulsion Wheel Treads Light Treads Leg Armored Leg Wheel Wheel Utility Light Armor Plating Device Structural Scanner Storage Huge Storage Unit Processor Tech Extrapolator Hackware Makeshift Hacking Suite Protection Light Armor Plating Weapon Barrage Gun Energy Gun Beamcaster Ballistic Gun Barrage Gun Ballistic Cannon Slug Cannon Launcher Grenade Launcher Special Weapon Mining Laser Impact Weapon Powered Hammer Slashing Weapon Ripper Build | -11 -10 -10 -9 -9 -6 -6 -6 -6 -5 ------- Run | Yrd Mat Sub Rec Scr Fac Low Low Dat Pro Slots Evolved 8 | . . . . . 8 . . . . Power . | . . . . . . . . . . Propulsion 3 | . . . . . 3 . . . . Utility 5 | . . . . . 5 . . . . Weapon . | . . . . . . . . . . Parts Attached 87 | 7 10 15 3 1 37 5 7 . 2 Power 6 | 1 2 2 . . . 1 . . . Engine 5 | 1 2 1 . . . 1 . . . Core 1 | . . 1 . . . . . . . Reactor . | . . . . . . . . . . Propulsion 26 | 2 4 2 . . 12 1 3 . 2 Treads 10 | . 1 2 . . 6 1 . . . Leg 5 | . . . . . . . 3 . 2 Wheel 11 | 2 3 . . . 6 . . . . Hover . | . . . . . . . . . . Flight . | . . . . . . . . . . Utility 31 | 2 2 4 3 . 16 1 3 . . Device 8 | 1 . . 1 . 5 . 1 . . Storage 5 | 1 2 2 . . . . . . . Processor 9 | . . . 2 . 4 1 2 . . Hackware 3 | . . . . . 3 . . . . Protection 6 | . . 2 . . 4 . . . . Artifact . | . . . . . . . . . . Weapon 24 | 2 2 7 . 1 9 2 1 . . Energy Gun 1 | . . . . . . 1 . . . Energy Cannon . | . . . . . . . . . . Ballistic Gun 9 | 2 . 2 . 1 4 . . . . Ballistic Cannon 7 | . 1 4 . . 1 1 . . . Launcher 3 | . 1 . . . 2 . . . . Special Weapon 1 | . . 1 . . . . . . . Impact Weapon 2 | . . . . . 2 . . . . Slashing Weapon 1 | . . . . . . . 1 . . Piercing Weapon . | . . . . . . . . . . Special Melee Weapon . | . . . . . . . . . . Unidentified Prototypes 1 | . . . . . . 1 . . . Parts Lost 37 | . 1 2 . . 30 . . . 4 Power 3 | . 1 1 . . 1 . . . . Propulsion 17 | . . . . . 14 . . . 3 Utility 9 | . . . . . 8 . . . 1 Weapon 8 | . . 1 . . 7 . . . . Highest Loss Streak 7 | . 1 1 . . 7 . . . 2 To Critical Strikes 1 | . . . . . 1 . . . . Average Backups 12 | 3 13 12 8 19 18 4 5 7 7 Power . | . . . . . . . . 1 1 Propulsion 1 | 2 3 2 . 1 . . . . . Utility 6 | . 2 4 6 13 11 3 2 2 2 Weapon 4 | . 6 4 1 3 4 1 3 4 4 Tool/Special . | . . . . . . . . . . Unused Backups 30 | 1 1 13 1 2 7 . . . 5 Power 3 | . . . . . 1 . . . 2 Propulsion 4 | 1 1 2 . . . . . . . Utility 10 | . . 2 . 1 5 . . . 2 Weapon 12 | . . 9 1 1 . . . . 1 Tool/Special 1 | . . . . . 1 . . . . Average Slot Usage (%) 95 | . 98 98 99 100 87 42 87 93 95 Engine 7 | . 12 11 . . . . 6 6 6 Core 3 | . . 1 10 10 5 . . . . Treads 15 | . 5 24 10 10 10 . 6 6 4 Leg 1 | . . . . . . . 13 18 23 Wheel 8 | . 22 4 20 20 12 . . . . Device 3 | . 14 . 5 . 5 6 11 12 10 Storage 10 | . 14 13 10 10 5 . 1 6 6 Processor 6 | . . . 4 10 16 19 23 18 18 Hackware 2 | . . . . . 8 12 12 12 12 Protection 9 | . . 13 10 10 6 . . . . Ballistic Gun 12 | . 19 13 20 20 9 . . . . Ballistic Cannon 9 | . 6 14 10 10 1 . . . . Peak Build Rating 72 | 7 9 49 50 44 72 41 63 61 66 Average Rating 37 | 5 7 28 46 41 62 27 58 61 62 On Entrance 33 | . 7 9 48 36 44 25 41 61 61 Avg Prop Armor Cover (%) 9 | . 10 8 8 8 9 19 11 11 10 Naked Turns . | . . . . . . . . . . Heaviest Build 117 | 12 51 104 103 105 117 19 64 64 64 Greatest Support 86 | 20 20 40 20 20 70 20 51 51 86 Greatest Overweight (x) 9 | 1 5 5 5 5 9 2 1 1 1 Average Overweight (x) 2 | . 2 2 5 5 3 . . 1 . Largest Inventory Capacity 25 | 8 20 25 25 25 25 5 20 20 20 Average Capacity 21 | 7 19 23 25 25 23 5 8 20 20 Most Carried 25 | 6 20 25 25 25 25 5 7 7 8 Average Carried 19 | 3 13 22 21 21 20 4 5 7 7 Final Capacity 25 | 8 20 25 25 25 5 5 20 20 20 Final Carried 25 | 6 19 24 10 25 5 5 7 7 8 Class Distribution -------------------- 38% | Mutant 23% | Derelict-Mutant 13% | Derelict-Tank 12% | Tank 4% | Scientist-Mutant 4% | Scavenger-Mutant Dominant Class ---------------- Mutant | -10/Materials Mutant | -10/Subcaves Derelict-Tank | -9/Recycling Tank | -9/Scraptown Scientist-Mutant | -6/Factory Hacker-Mutant | -6/Lower Caves Derelict-Mutant | -6/Lower Caves Derelict-Mutant | -6/Data Miner Derelict-Mutant | -5/Proximity Caves Resources | -11 -10 -10 -9 -9 -6 -6 -6 -6 -5 ----------- Run | Yrd Mat Sub Rec Scr Fac Low Low Dat Pro Matter Collected 3682 | 363 411 952 162 30 1308 281 105 . 70 Remotely . | . . . . . . . . . . Salvage Created 3488 | 125 653 316 320 . 1723 43 182 . 126 Parts 201 | 13 42 23 16 . 99 . 6 . 2 Haulers Intercepted 2 | . 1 . . . 1 . . . . Recyclers Shooed 7 | 1 3 . . . 3 . . . . Parts Field Recycled . | . . . . . . . . . . Retrieved Matter . | . . . . . . . . . . Parts Self-Destructed 41 | . . 13 . . . . 5 . 23 Prevented . | . . . . . . . . . . Parts Restored . | . . . . . . . . . . Kills | -11 -10 -10 -9 -9 -6 -6 -6 -6 -5 ------- Run | Yrd Mat Sub Rec Scr Fac Low Low Dat Pro Combat Hostiles Destroyed 64 | . 14 13 1 . 29 . 3 . 4 Melee 6 | . . . . . . . 2 . 4 Guns 31 | . 8 2 1 . 20 . . . . Cannons 11 | . 1 9 . . 1 . . . . AOE 12 | . 5 2 . . 5 . . . . Classes Destroyed 16 | 2 5 2 2 . 4 1 . . . Worker 7 | . . . . . 7 . . . . Builder 8 | . . . 2 . 6 . . . . Tunneler 6 | 4 1 . . . 1 . . . . Hauler 2 | . 1 . . . 1 . . . . Recycler 7 | 1 2 . 3 . 1 . . . . Operator 1 | . 1 . . . . . . . . Turret 2 | . . 2 . . . . . . . Watcher 5 | . 2 . . . 3 . . . . Swarmer 16 | . 3 4 . . 7 . . . 2 Grunt 27 | . 11 2 . . 9 . 3 . 2 Brawler 1 | . . . . . 1 . . . . Researcher 1 | . . . . . . 1 . . . Sentry 4 | . . . 1 . 3 . . . . Hunter 4 | . . . . . 4 . . . . Programmer 5 | . . . . . 5 . . . . Subdweller 7 | . . 7 . . . . . . . Best Kill Streak 12 | 3 5 4 3 . 12 . 3 . 2 Combat Bots Only 6 | . 4 4 1 . 6 . 3 . 2 Max Kills in Single Turn 3 | 1 3 2 1 . 3 1 1 . 1 Gunslinging . | . . . . . . . . . . Exploded 3 | . 3 2 . . 2 . . . . Melee 1 | . . . . . . . 1 . 1 Uniques/NPCs Destroyed . | . . . . . . . . . . Combat | -11 -10 -10 -9 -9 -6 -6 -6 -6 -5 -------- Run | Yrd Mat Sub Rec Scr Fac Low Low Dat Pro Hostile Shots Fired 608 | . 46 79 4 . 391 6 18 . 64 Missed 181 | . 19 43 1 . 96 4 4 . 14 Hits 427 | . 27 36 3 . 295 2 14 . 50 Melee 1 | . . . . . 1 . . . . Projectile 426 | . 27 36 3 . 294 2 14 . 50 Critical Strikes 9 | . . . . . 6 . 2 . 1 Damage Taken 6378 | . 396 557 42 . 4283 . 194 . 906 Core 988 | . 81 33 13 . 689 . 18 . 154 Absorbed by Shields 219 | . . . . . . . 68 . 151 Ignored by Resistances 272 | . . . . . 272 . . . . Regen/Repaired (Parts) 127 | . . . . . 127 . . . . Core Remaining (%) 74 | 100 . . . 49 . . . . . Volleys Fired 282 | 24 53 86 10 . 109 . . . . Largest 3 | 2 2 3 3 . 3 . . . . Hottest 140 | 40 50 140 96 . 101 . . . . Shots Fired 536 | 48 99 132 30 . 227 . . . . Gun 375 | 48 81 24 20 . 202 . . . . Cannon 103 | . 10 64 10 . 19 . . . . Launcher 15 | . 8 1 . . 6 . . . . Special 43 | . . 43 . . . . . . . Kinetic 478 | 48 91 88 30 . 221 . . . . Thermal 43 | . . 43 . . . . . . . Explosive 15 | . 8 1 . . 6 . . . . Electromagnetic . | . . . . . . . . . . Robot Hit Streak 13 | 10 13 10 5 . 11 . . . . Robot Miss Streak 6 | 2 6 4 4 . 4 . . . . Penetration Max 1 | . . . . . 1 . . . . Secondary Targets 2 | . 1 . . . 1 . . . . Max Gunslinging Chain 1 | . 1 . . . 1 . . . . Shots Hit Robots 336 | 30 57 48 12 . 166 1 4 . 18 Core Hits 165 | 10 39 21 7 . 80 . 2 . 6 Critical Kills 8 | . 1 1 1 . 5 . . . . Critical Parts Destroyed 14 | . . 1 . . 10 1 2 . . Critical Strikes 24 | . 1 2 1 . 16 1 2 . 1 Destroy 15 | . 1 2 1 . 11 . . . . Blast 1 | . . . . . 1 . . . . Smash 7 | . . . . . 4 1 2 . . Sever 1 | . . . . . . . . . 1 Melee Attacks 54 | . . . . . 25 2 6 . 21 Impact 38 | . . . . . 25 2 6 . 5 Slashing 16 | . . . . . . . . . 16 Piercing . | . . . . . . . . . . Sneak Attacks 4 | . . . . . 3 1 . . . Combat Hostiles . | . . . . . . . . . . Follow-up Attacks 3 | . . . . . . . . . 3 Damage Inflicted 8846 | 296 1081 1066 262 . 5076 155 216 . 694 Guns 4347 | 296 597 252 217 . 2985 . . . . Cannons 1172 | . 85 714 45 . 328 . . . . Explosions 1511 | . 399 100 . . 1012 . . . . Melee 1805 | . . . . . 740 155 216 . 694 Ramming 11 | . . . . . 11 . . . . Kinetic 5519 | 296 682 966 262 . 3313 . . . . Thermal . | . . . . . . . . . . Explosive 1511 | . 399 100 . . 1012 . . . . Electromagnetic . | . . . . . . . . . . Impact 1252 | . . . . . 740 155 216 . 141 Slashing 553 | . . . . . . . . . 553 Piercing . | . . . . . . . . . . Highest Corruption 6 | . . . . . 6 6 6 6 6 Average Corruption 5 | . . . . . 3 6 6 6 6 Corruption Purged . | . . . . . . . . . . Corruption Blocked . | . . . . . . . . . . Effects 74 | . . . . . 22 9 31 3 9 Message Errors 17 | . . . . . 5 1 9 . 2 Matter Fused 12 | . . . . . 2 1 8 . 1 Heat Flow Errors 13 | . . . . . 5 3 4 . 1 Energy Discharges 8 | . . . . . 4 1 2 . 1 Parts Rejected 2 | . . . . . 2 . . . . Parts Fused 1 | . . . . . 1 . . . . Data Loss (minor) 11 | . . . . . . 1 6 2 2 Data Loss (major) 7 | . . . . . 1 2 2 1 1 Misfires 2 | . . . . . 2 . . . . Alerts 1 | . . . . . . . . . 1 Overload Shots . | . . . . . . . . . . Overflow Damage 623 | . 6 . . . 320 155 110 . 32 Projectiles . | . . . . . . . . . . Explosions 117 | . 6 . . . 111 . . . . Melee 506 | . . . . . 209 155 110 . 32 Knockbacks 14 | . 2 6 . . 3 1 2 . . Impact 5 | . . . . . 2 1 2 . . Kinetic 9 | . 2 6 . . 1 . . . . Secondary . | . . . . . . . . . . Self-Inflicted Damage 444 | . . 21 . . 423 . . . . Shots 6 | . . 1 . . 5 . . . . Rammed 4 | . . . . . 4 . . . . Targets Rammed 4 | . . . . . 4 . . . . Kicked . | . . . . . . . . . . Crushed . | . . . . . . . . . . Highest Temperature 252 | . 6 7 144 . 216 221 191 . 252 Average Temperature 57 | . 3 3 57 . 50 107 84 . 138 Received Heat Transfer 1576 | . 174 180 18 . 822 . 98 . 284 Effects 3 | . . . . . . . . . 3 Interference 3 | . . . . . . . . . 3 Siege Activations . | . . . . . . . . . . Martial Activations . | . . . . . . . . . . Shielding Activations . | . . . . . . . . . . Robots Disrupted . | . . . . . . . . . . Combat Hostiles . | . . . . . . . . . . Robots Corrupted 6 | . . . . . 4 1 1 . . Combat Hostiles 4 | . . . . . 3 . 1 . . Parts Fried 7 | . . . . . 3 2 2 . . Impact Corruptions 12 | . . . . . 8 2 2 . . Robots Melted . | . . . . . . . . . . Combat Hostiles . | . . . . . . . . . . Parts Melted . | . . . . . . . . . . Heat Transferred . | . . . . . . . . . . Parts Sabotaged . | . . . . . . . . . . Parts Stolen . | . . . . . . . . . . Parts Stripped . | . . . . . . . . . . Power Chain Reactions . | . . . . . . . . . . Alert | -11 -10 -10 -9 -9 -6 -6 -6 -6 -5 ------- Run | Yrd Mat Sub Rec Scr Fac Low Low Dat Pro Maximum Alert Level 2 | . 1 . . . 2 . . . . Low Security (%) 82 | 100 86 . 100 . 70 . . . . Level 1 16 | . 13 . . . 27 . . . . Level 2 . | . . . . . 1 . . . . Level 3 . | . . . . . . . . . . Level 4 . | . . . . . . . . . . Level 5 . | . . . . . . . . . . High Security . | . . . . . . . . . . Max Security . | . . . . . . . . . . Peak Influence 424 | 10 249 . 36 . 424 . . . . Initial 19 | . . . 19 . . . . . . Average 93 | 1 107 . 2 . 138 . . . . Influence Increases 2619 | 25 457 230 67 . 1312 . 70 . 458 Destroy 0b10 Robot/C 1400 | . 280 160 20 . 580 . 60 . 300 Destroy 0b10 Robot/NC 180 | 25 35 . 25 . 95 . . . . Destroy Leader 284 | . 56 10 . . 168 . 10 . 40 Allied During Kill 73 | . . . . . . . . . 73 Trap Triggered on 0b10 20 | . . . . . 20 . . . . Successful Hack 96 | . 21 . 15 . 60 . . . . Disable Machine 180 | . 15 . . . 165 . . . . Destroy Structure 131 | . 35 . 7 . 89 . . . . Partial Spotted 30 | . . . . . 30 . . . . Lose Combat Pursuer 225 | . 15 60 . . 105 . . . 45 Influence Decreases 2405 | 25 457 190 107 . 890 297 195 . 244 Entered New Map 203 | . . . 21 . . 157 25 . . Time Decay 1552 | 25 313 180 86 . 454 140 170 . 184 Lost Part 311 | . 10 10 . . 251 . . . 40 Lost Ally 20 | . . . . . . . . . 20 Purge Threat 319 | . 134 . . . 185 . . . . Squads Dispatched 17 | . 2 . . . 15 . . . . Investigation 7 | . 2 . . . 5 . . . . Extermination 5 | . . . . . 5 . . . . Reinforcement 5 | . . . . . 5 . . . . Assault . | . . . . . . . . . . Garrison . | . . . . . . . . . . Intercept . | . . . . . . . . . . Searches Triggered . | . . . . . . . . . . Construction Impeded 3 | . . . . . 3 . . . . Haulers Reinforced 1 | . . . . . 1 . . . . Active Scanning Responses . | . . . . . . . . . . Cargo Convoy Interrupts . | . . . . . . . . . . Stealth | -11 -10 -10 -9 -9 -6 -6 -6 -6 -5 --------- Run | Yrd Mat Sub Rec Scr Fac Low Low Dat Pro Distress Signals 3 | . 3 . . . . . . . . Communications Jammed . | . . . . . . . . . . Distress Signals . | . . . . . . . . . . Times Spotted 114 | . 27 16 1 . 50 2 3 . 15 Peak Tracking Total 7 | . 6 6 1 . 7 2 3 . 5 Tactical Retreats 7 | . 1 1 . . 4 . . . 1 Traps | -11 -10 -10 -9 -9 -6 -6 -6 -6 -5 ------- Run | Yrd Mat Sub Rec Scr Fac Low Low Dat Pro Traps Triggered 4 | . 3 1 . . . . . . . Indirectly . | . . . . . . . . . . Trap Hack Attempts . | . . . . . . . . . . Triggered . | . . . . . . . . . . Disarmed . | . . . . . . . . . . Reprogrammed . | . . . . . . . . . . Reused 2 | . . . . . 2 . . . . Traps Extracted . | . . . . . . . . . . Installed 2 | . . . . . 2 . . . . Triggered 2 | . . . . . 2 . . . . Most Traps Carried 3 | . . 1 1 3 3 . . . . Machines | -11 -10 -10 -9 -9 -6 -6 -6 -6 -5 ---------- Run | Yrd Mat Sub Rec Scr Fac Low Low Dat Pro Machines Disabled 14 | . 1 1 . . 11 1 . . . Max in Single Turn 2 | . 1 1 . . 2 1 . . . Garrison Access 1 | . . . . . 1 . . . . Machines Repaired . | . . . . . . . . . . Machines Dismantled . | . . . . . . . . . . Machines Sabotaged . | . . . . . . . . . . Overloaded Fab Kills . | . . . . . . . . . . Hacking | -11 -10 -10 -9 -9 -6 -6 -6 -6 -5 --------- Run | Yrd Mat Sub Rec Scr Fac Low Low Dat Pro Machines Accessed 45 | . 7 3 9 3 18 . 1 4 . Terminals 19 | . 6 . 6 . 7 . . . . Fabricators 1 | . . . . . 1 . . . . Repair Stations 2 | . 1 . . . 1 . . . . Recycling Units 8 | . . . 3 . 5 . . . . Scanalyzers 3 | . . . . . 3 . . . . Garrison Access 1 | . . . . . 1 . . . . Total Hacks 141 | . 18 11 20 9 55 . 1 27 . Successful 102 | . 8 11 12 9 34 . 1 27 . Failed 38 | . 9 . 8 . 21 . . . . Catastrophic 4 | . 1 . . . 3 . . . . Database Lockouts 1 | . 1 . . . . . . . . Manual 47 | . 14 . 9 . 24 . . . . Terminals 58 | . 16 . 15 . 27 . . . . Fabricators 1 | . . . . . 1 . . . . Repair Stations 6 | . 2 . . . 4 . . . . Recycling Units 15 | . . . 5 . 10 . . . . Scanalyzers 12 | . . . . . 12 . . . . Garrison Access 1 | . . . . . 1 . . . . Terminal Hacks 63 | . 3 11 5 9 7 . 1 27 . Record 22 | . . 8 . 3 . . . 11 . Part Schematic 11 | . . . 2 . 1 . . 8 . Robot Schematic 5 | . . . . . . . . 5 . Robot Analysis 10 | . 2 . 2 5 1 . . . . Prototype ID Bank 5 | . . . 1 . 1 . . 3 . Open Door 2 | . . 1 . . . . 1 . . Branch Access Points 1 | . . . . . 1 . . . . Unreport Threat 3 | . 1 . . . 2 . . . . Locate Traps 1 | . . . . . 1 . . . . Proto ID Catalog 2 | . . 1 . 1 . . . . . Release Object 1 | . . 1 . . . . . . . Fabricator Hacks . | . . . . . . . . . . Repair Station Hacks 2 | . . . . . 2 . . . . Scan Component 1 | . . . . . 1 . . . . Repair 1 | . . . . . 1 . . . . Recycling Unit Hacks 3 | . . . 3 . . . . . . Retrieve Components 3 | . . . 3 . . . . . . Scanalyzer 12 | . . . . . 12 . . . . Insert Component 3 | . . . . . 3 . . . . Analyze 3 | . . . . . 3 . . . . Retrieve Study 6 | . . . . . 6 . . . . Garrison Access Hacks 1 | . . . . . 1 . . . . Seal Access 1 | . . . . . 1 . . . . Unauthorized Hacks 21 | . 5 . 4 . 12 . . . . Terminals 15 | . 4 . 4 . 7 . . . . Track 1 | . . . . . 1 . . . . Botnet 13 | . 3 . 4 . 6 . . . . Operators 1 | . 1 . . . . . . . . Fabricators . | . . . . . . . . . . Repair Stations 1 | . 1 . . . . . . . . Mechanics 1 | . 1 . . . . . . . . Recycling Units 5 | . . . . . 5 . . . . Fedlink 5 | . . . . . 5 . . . . Scanalyzers . | . . . . . . . . . . Garrison Access . | . . . . . . . . . . Data Cores Recovered . | . . . . . . . . . . Used . | . . . . . . . . . . Hacking Detections 26 | . 7 . 7 . 12 . . . . Full Trace Events . | . . . . . . . . . . Feedback Events . | . . . . . . . . . . Feedback Blocked . | . . . . . . . . . . Robot Schematics Acquired 5 | . . . . . . . . 5 . Robots Built . | . . . . . . . . . . Authchips . | . . . . . . . . . . Time . | . . . . . . . . . . Total Robot Build Rating . | . . . . . . . . . . Part Schematics Acquired 38 | . . . 2 12 14 . 2 8 . Parts Built . | . . . . . . . . . . Authchips . | . . . . . . . . . . Time . | . . . . . . . . . . Total Part Build Rating . | . . . . . . . . . . Part Studies Acquired 6 | . . . . . 6 . . . . Parts Repaired 1 | . . . . . 1 . . . . Time 25 | . . . . . 25 . . . . Parts Recycled . | . . . . . . . . . . Recycled Matter . | . . . . . . . . . . Retrieved Matter . | . . . . . . . . . . Retrieved Components 7 | . . . 7 . . . . . . Parts Scanalyzed 3 | . . . . . 3 . . . . Part Schematics Acquired 3 | . . . . . 3 . . . . Parts Damaged . | . . . . . . . . . . Bothacking | -11 -10 -10 -9 -9 -6 -6 -6 -6 -5 ------------ Run | Yrd Mat Sub Rec Scr Fac Low Low Dat Pro Used RIF Installer . | . . . . . . . . . . Robots Hacked . | . . . . . . . . . . Non-combat . | . . . . . . . . . . Combat . | . . . . . . . . . . Robot Hacks Applied . | . . . . . . . . . . Relay Couplers Released . | . . . . . . . . . . Fabnet Peak Effective % . | . . . . . . . . . . Robots Rewired . | . . . . . . . . . . Allies Hacked . | . . . . . . . . . . Hacks Repelled . | . . . . . . . . . . Allies | -11 -10 -10 -9 -9 -6 -6 -6 -6 -5 -------- Run | Yrd Mat Sub Rec Scr Fac Low Low Dat Pro Total Allies 1 | . . . . . . . . . 1 Largest Group 1 | . . . . . . . . . 1 Highest-Rated Group 96 | . . . . . . . . . 96 Highest-Rated Ally 96 | . . . . . . . . . 96 Initial UFD Resources 46 | . . . . . 22 42 42 42 46 Total Orders . | . . . . . . . . . . Ally Attacks 40 | . . . . . . . . . 40 Total Damage 1854 | . . . . . . . . . 1854 Kills 11 | . . . . . . . . . 11 Allies Corrupted . | . . . . . . . . . . Allies Melted . | . . . . . . . . . . Intel | -11 -10 -10 -9 -9 -6 -6 -6 -6 -5 ------- Run | Yrd Mat Sub Rec Scr Fac Low Low Dat Pro Active Infowar (turns) 5565 | 76 1061 3 523 . 1858 280 1120 196 448 Optics 2440 | . . . . . 1857 . 583 . . Structural 2621 | . . . 311 . 266 280 1120 196 448 Seismic 1352 | 76 1061 3 212 . . . . . . Decoding 1674 | . . . . . . . 1030 196 448 Robot Analysis Total 10 | . 2 . 2 5 1 . . . . Derelict Logs Recovered 5 | . . 1 . 1 . 1 2 . . Drone Launches . | . . . . . . . . . . Drone Recoveries . | . . . . . . . . . . Exploration | -11 -10 -10 -9 -9 -6 -6 -6 -6 -5 ------------- Run | Yrd Mat Sub Rec Scr Fac Low Low Dat Pro Turns Passed 15907 | 178 1061 7645 1011 1912 2056 280 1120 196 448 Spaces Moved 7883 | 105 685 2731 611 1217 1035 415 711 101 272 Core 570 | 2 . . . . 160 408 . . . Treads 1995 | . . 1748 . . 112 7 128 . . Legs 956 | . . . . . . . 583 101 272 Wheels 4362 | 103 685 983 611 1217 763 . . . . Hover . | . . . . . . . . . . Flight . | . . . . . . . . . . Fastest Speed 50 | 50 80 110 155 155 50 50 126 196 120 Average Speed 173 | 85 120 240 155 155 142 62 151 196 142 Slowest Speed 340 | 100 155 340 155 155 320 170 250 196 196 Overloaded Moves . | . . . . . . . . . . Propulsion Burnouts . | . . . . . . . . . . Robots Hopped . | . . . . . . . . . . Potential Cave-ins . | . . . . . . . . . . Cave-ins Triggered . | . . . . . . . . . . Exploration Rate (%) 65 | 6 85 98 92 88 32 59 82 74 39 Regions Visited 9 Branch Regions 7 Pre-discovered Areas 3 | . . . . . 1 . 1 1 . Known Exits Taken 2 | . . . . . 1 1 . . . Unknown Exits Taken 7 | 1 1 1 1 1 . . 1 1 . Scrap Searched 27 | . . 16 . 6 . 1 4 . . Spaces Dug 14 | . . 3 . . 10 1 . . . Terrain Destroyed 175 | . 36 11 7 . 120 1 . . . Melee 11 | . . . . . 10 1 . . . Projectile 30 | . . 6 7 . 17 . . . . AOE 133 | . 36 5 . . 92 . . . . Terrain Rammed . | . . . . . . . . . . Walls Destroyed . | . . . . . . . . . . Machines Disabled . | . . . . . . . . . . Actions | -11 -10 -10 -9 -9 -6 -6 -6 -6 -5 --------- Run | Yrd Mat Sub Rec Scr Fac Low Low Dat Pro Total 9405 | 147 823 3598 656 1244 1362 428 740 100 307 Wait 908 | 3 48 697 22 5 104 4 9 . 16 Move 7874 | 104 684 2730 610 1216 1034 414 710 100 272 Hop . | . . . . . . . . . . Pick Up 90 | 8 18 20 4 18 17 . 4 . 1 Fast Attach 32 | 6 . 1 3 . 9 6 5 . 2 Attach 37 | 1 1 6 1 . 26 1 1 . . Detach 6 | . . 1 . . 4 1 . . . Swap 64 | . 12 30 . 1 18 . 3 . . Drop 57 | 1 7 27 6 4 10 . 2 . . Fire 282 | 24 53 86 10 . 109 . . . . Melee 49 | . . . . . 25 2 6 . 16 Ram 4 | . . . . . 4 . . . . Kick . | . . . . . . . . . . Crush . | . . . . . . . . . . Escape Stasis . | . . . . . . . . . . Rewire . | . . . . . . . . . . Trap 2 | . . . . . 2 . . . . Miscellaneous . | . . . . . . . . . . Route ------- -11/Scrapyard -10/Materials (discovered 5 exits: [*Mat x3] / [*Min] / *Sub) -10/Subcaves (discovered 3 exits: [*Mat x2] / *Rec) -9/Recycling (discovered 2 exits: [*Fac] / *Scr) -9/Scraptown (discovered 2 exits: *Fac x2) -6/Factory (discovered 2 exits: *Low x2) -6/Lower Caves -6/Lower Caves (discovered 2 exits: *Fac / *Dat) -6/Data Miner -5/Proximity Caves (discovered 1 exit: Fac) History --------- Turn | Location | Event 16 | -11/Scrapyard | Discovered new exit (range 16) 179 | -11/Scrapyard | Entered Materials 313 | -10/Materials | Build established: Mutant 354 | -10/Materials | Discovered new exit (range 13) 609 | -10/Materials | Discovered new exit (range 16) 620 | -10/Materials | Central database locked down 978 | -10/Materials | Discovered new exit (range 16) 1137 | -10/Materials | Discovered new exit (range 11) 1147 | -10/Materials | Discovered new exit (range 16) 1240 | -10/Materials | Entered Subcaves 1467 | -10/Subcaves | A swath of the cavern ceiling suddenly collapsed 2517 | -10/Subcaves | A swath of the cavern ceiling suddenly collapsed 3824 | -10/Subcaves | Found SUBCON Basin 4812 | -10/Subcaves | Discovered new exit (range 6) 5281 | -10/Subcaves | Discovered new exit (range 4) 5725 | -10/Subcaves | Build established: Derelict-Mutant 5792 | -10/Subcaves | Learned 8 Materials zone layouts 7689 | -10/Subcaves | Visited 4L-MR0's lab 7736 | -10/Subcaves | Found Meta Core 7739 | -10/Subcaves | Attached Meta Core, gained temporary slots: Propulsion, Utility, Weapon 8070 | -10/Subcaves | Build established: Derelict-Tank 8561 | -10/Subcaves | Discovered new exit (range 14) 8885 | -10/Subcaves | Entered Recycling 8903 | -9/Recycling | Core integrity fell below 50% 9409 | -9/Recycling | Discovered new exit (range 15) 9623 | -9/Recycling | Scanned before Scraplab entrance 9646 | -9/Recycling | Entered Scraplab 9893 | -9/Recycling | Discovered new exit (range 3) 9896 | -9/Recycling | Entered Scraptown 9934 | -9/Scraptown | Heard Great Nut preacher, LISTEN AND RECITE! 10297 | -9/Scraptown | Scanned Subdweller tech in exchange for log data 10301 | -9/Scraptown | Learned Factory trap positions 10326 | -9/Scraptown | Discovered new exit (range 7) 10354 | -9/Scraptown | Build established: Tank 10450 | -9/Scraptown | Visited Awakened 10462 | -9/Scraptown | Visited IN-MT5's Study 10483 | -9/Scraptown | Tech Extrapolator generated special schematic: Machine Rigger 10489 | -9/Scraptown | Visited UFD Registry 10493 | -9/Scraptown | Registered with UFD as "Protospreader" 10639 | -9/Scraptown | Tech Extrapolator generated special schematic: Deep Structural Scanner 10854 | -9/Scraptown | Visited Spacefarers 10876 | -9/Scraptown | Visited Cave Peace 10999 | -9/Scraptown | Visited CPS Storage 11014 | -9/Scraptown | Visited Fellowship of the Rings 11039 | -9/Scraptown | Visited SPCMW 11133 | -9/Scraptown | Visited Analyses Database 11171 | -9/Scraptown | Visited Observation Area 11206 | -9/Scraptown | Visited Junk Repository 11275 | -9/Scraptown | Visited Modified Component R&D 11327 | -9/Scraptown | Visited Research Penetration Think Tank 11363 | -9/Scraptown | Visited LU-1G1's Boring Crew 11554 | -9/Scraptown | Visited Scrap Suit Storage 11597 | -9/Scraptown | Visited Science Guys 11724 | -9/Scraptown | Met Optimus 11724 | -9/Scraptown | Accepted into 0bPrime 11803 | -9/Scraptown | Discovered new exit (range 3) 11808 | -9/Scraptown | Entered Factory 11808 | -6/Factory | Evolved 8 slots: Propulsion x3, Utility x5 11809 | -6/Factory | Loaded intel: 95 trap records 12166 | -6/Factory | Lost 3 parts (1n2u) 12248 | -6/Factory | Identified exit to Lower Caves 12370 | -6/Factory | Loaded intel: 8 recycling unit locations 12412 | -6/Factory | Build established: Mutant 12430 | -6/Factory | Learned location of Protoforge (-3) 12608 | -6/Factory | Lost 7 parts (2n1u4w) 13067 | -6/Factory | Lost 3 parts (2n1u) 13155 | -6/Factory | Found Hvy. Insulated Plating 13163 | -6/Factory | Build established: Scientist-Mutant 13358 | -6/Factory | Repaired Coil Gun+ 13635 | -6/Factory | Lost 7 parts (3n2u2w) 13738 | -6/Factory | Core integrity fell below 50% 13787 | -6/Factory | Lost 4 parts (1p1n1u1w) 13861 | -6/Factory | Core integrity fell below 20% 13864 | -6/Factory | Entered Lower Caves 13980 | -6/Lower Caves | Learned location of 1 exit from Proximity Caves 13984 | -6/Lower Caves | Found Alien Artifact 13984 | -6/Lower Caves | Identified Core Expander 13984 | -6/Lower Caves | Installed Core Expander, added new Utility slot 14043 | -6/Lower Caves | Build established: Hacker-Mutant 14115 | -6/Lower Caves | Discovered new exit (range 15) 14142 | -6/Lower Caves | Identified exit to Lower Caves 14144 | -6/Lower Caves | Entered another Lower Caves area 14178 | -6/Lower Caves | Discovered new exit (range 7) 14189 | -6/Lower Caves | Identified exit to Factory 14615 | -6/Lower Caves | Build established: Derelict-Mutant 14729 | -6/Lower Caves | Discovered new exit (range 18) 14928 | -6/Lower Caves | Learned location of Extension (-5) 14992 | -6/Lower Caves | Learned Factory non-interactive machine intel 15264 | -6/Lower Caves | Entered Data Miner 15264 | -6/Data Miner | Discovered new exit (range 6) 15302 | -6/Data Miner | Met Data Miner 15343 | -6/Data Miner | Learned location of Section 7 (-3) 15343 | -6/Data Miner | Acquired the access code to Warlord's prototype stash 15370 | -6/Data Miner | Received God Mode back door access code from Data Miner 15460 | -6/Data Miner | Entered Proximity Caves 15501 | -5/Proximity Caves | Escorted by Enhanced Grunt 15887 | -5/Proximity Caves | Attracted the attention of an 0b10 checkpoint 15908 | -5/Proximity Caves | Destroyed by Y-64 Sentinel with KE Penetrator Last Messages --------------- 15850_ Enhanced Grunt destroyed. 15860_ System corrupted: Matter fused (-5). 15876_ Acquired 2 matter. 15877_ Acquired 3 matter. 15886_ Mak. Leg destroyed. 15887_ Y-64 Sentinel: "INTERCEPTING UNREGISTERED DERELICT." 15892_ System corrupted: Component data lost. 15892_ Destroyed Lgt. Nuclear Core. 15893_ Carbon-fiber Leg destroyed. 15894_ S-27 Virus destroyed. 15897_ Powered Hammer+ follow-up attack on Y-64 Sentinel. 15900_ S-27 Virus Autogun severed. 15900_ Powered Hammer+ follow-up attack on S-27 Virus. 15900_ S-27 Virus destroyed. 15900_ Penetrated by Slug. 15906_ Slug penetrates Wall. 15908_ Penetrated by Slug. Map ----- +----------------------------------------------------+ | ???## ####??#### ###???????????????????????? | | ? ##????## # ##???????????????????????? | | ?##### ??????## # ##???????????????????????? | | ?######## ??????## ###???????????????????????? | | ????######??????### ###???????????????????????? | | ????????????????##### ##????????????????????????? | | ?????????????####### ##????????????????????????? | | ???#####?????######## ###????????????????????????? | | ??#####?????## ####????????????????????????? | | # ?????## ########?????????????????????????? | | ### ##?????## #######???? ###??????????????????? | | # ##????### #####?????? ###??????????????????? | | # ##???#### ###????? ##??????????????????? | | ? ##???### ##### ?? ##??????????????????? | | ??? ##???## % #####?? ##??????????????????? | | ??? # ##???### % #### ##??????????????????? | | """"# ##########% % #### ##??????????????????? | | ##### ########### %### ###?????????????????? | | #### #### % ##? ######### ??????????? | | ###### ##### ## ##? ######## ?????????? | | ##### ##% ### $##?????????? | | ??### ## %### ? ?????????? | | ??## ###### ###?????????????????? | | ??## #### ######??????????????? | | ??## #### [% #### ???###????????? | | ##### @Y ###???????? | | ##### ### ##???????? | | % ############## ## #???????? | | %%% ############## #####??????????? | | ## ###????????????? #### ??????????? | | ## ####?????????????? ##?????????????? | | ## #####??????????????? ?????????????? | | ## #####????????????????? ??????????? | | # ###???????????????????? #### ??????????? | | ###????????????????????? #####??????????? | | ###????????????????????? ! ?????????????? | | ##?????????????????????!%!?????????????? | | ##????????????????????? ##?????????????? | | ##????????????????????? ##?????????????? | | ## ?????????????????????????????????????? | | #### ?????????????????????????????????????? | | #### ?????????????????????????????????????? | | ##### ???????????????????????????????????????? | | ###### ????????????????????????????????????????? | | ##?## ?????????????????????????????????????????? | | ####?????????????????????????????????????????????? | | ####?????????????????????????????????????????????? | | ?????????????????????????????????????????????????? | | ?????????????????????????????????????????????????? | | ?????????????????????????????????????????????????? | +----------------------------------------------------+ Best States ------------- Heat Dissipation 37 Energy Generation 17 Energy Capacity 290 Matter Stores 376 Matter Capacity 400 Sight Range 22 Terrain Scan Density 10 Armor Coverage 600 Resistance: KI 20 Resistance: EM 30 Phase Shifting 5 Evasion (%) 55 Targeting Accuracy 6 Target Analysis 6 Recoil Reduction 7 Kinecelleration 30 Salvage Targeting 1 Offensive Hacking 23 Defensive Hacking 11 Item Schematics ----------------- Reactive Plating | -9/Recycling | Hacked Imp. Treads | -9/Recycling | Hacked Spk. Treads | -9/Scraptown | Extrapolated Machine Rigger | -9/Scraptown | Extrapolated Deep Structural Scanner | -9/Scraptown | Extrapolated Mak. Trap Scanner | -9/Scraptown | Extrapolated Mak. Leg | -9/Scraptown | Extrapolated Mak. Utility Shielding | -9/Scraptown | Extrapolated Mak. Medium Armor Plating | -9/Scraptown | Extrapolated Mak. Ablative Armor | -9/Scraptown | Extrapolated Lgt. Humpback | -9/Scraptown | Extrapolated Mak. Propulsion Shielding | -9/Scraptown | Extrapolated Mak. Terrain Scanner | -9/Scraptown | Extrapolated Mak. Coolant Network | -9/Scraptown | Extrapolated Mak. Power Source | -6/Factory | Extrapolated Spk. Medium Treads | -6/Factory | Extrapolated Adv. Medium Treads | -6/Factory | Hacked Mak. Light Armor Plating | -6/Factory | Extrapolated Mak. Hacking Suite | -6/Factory | Extrapolated Beamcaster | -6/Factory | Extrapolated Multitool | -6/Factory | Extrapolated 0b10 Decoder Chip [Generic] | -6/Factory | Extrapolated 0b10 Decoder Chip [Scout] | -6/Factory | Extrapolated 0b10 Decoder Chip [Skirmisher] | -6/Factory | Extrapolated CPS Tube | -6/Factory | Scanalyzed Cloaking Device | -6/Factory | Scanalyzed Hvy. Beamcaster | -6/Factory | Extrapolated Hcp. Storage Unit | -6/Factory | Scanalyzed Mak. Salvage Targeting Computer | -6/Lower Caves | Extrapolated Enh. Flamer | -6/Lower Caves | Extrapolated Combat Drone Bay | -6/Data Miner | Free Lgt. Regenerative Plating | -6/Data Miner | Free Enh. Armored Leg | -6/Data Miner | Free Imp. Matter Compressor | -6/Data Miner | Free Hvy. Proton Missile Launcher | -6/Data Miner | Free Hvy. Siege Treads | -6/Data Miner | Free Adv. Thermal Shield | -6/Data Miner | Free Adv. Datajack | -6/Data Miner | Free Robot Schematics ------------------ Y-64 Sentinel | -6/Data Miner | Free G-50 Soldier | -6/Data Miner | Free B-48 Gladiator | -6/Data Miner | Free A-27 Freighter | -6/Data Miner | Free M-30 Cleanser | -6/Data Miner | Free Fabricated ------------ Nothing Repaired ---------- Coil Gun | 15% | -6/Factory Studied --------- Wheel | -6/Factory | Hacked Coil Gun | -6/Factory | Hacked Imp. Medium Treads | -6/Factory | Hacked Powered Hammer | -6/Factory | Hacked Gauss Rifle | -6/Factory | Hacked Lrn. Missile Launcher | -6/Factory | Hacked Alien Tech Used ----------------- Core Expander Achievements -------------- Mistaken Identity Challenges ------------ None Game ------ Seed BattleAssaultMask Manual? 0 Play Time 01:36:17 Cumulative 411.8 hours Start 2026.02.28 @ 07:06:53 End 2026.02.28 @ 08:41:16 Sessions 1 Manual Loads 0 Difficulty Rogue Special Mode None Game No. 461 Rogue 461 Adventurer 0 Explorer 0 Win Type - Total 6 Types 3/1/1/1/0/0/0/0/0/0 Lore% 76 Gallery% 68 Achievement% 45 Wizard Run 0 Options --------- Layout 1 ASCII 0 Keyboard 0 Movement Numpad Keybinds 0 Fullscreen 1 Font 32/SmallcapsGlow Map View 50x35 Zoom Use 0% Tactical HUD 1 Map Filters NONE Filters NONE Steam 1 RUN: c667de64-3933-4203-8653-f24e2b5a3f09